[Event "DVM U20 2019"]
[Site "Braunschweig"]
[Date "2019.12.28"]
[Round "3"]
[White "Thomsen, Phil"]
[Black "Yankelevich, Michael"]
[Result "0-1"]
[ECO "B32"]
[WhiteElo "2147"]
[BlackElo "2064"]
[Annotator "RC"]
[PlyCount "70"]
[EventDate "2019.12.27"]
[EventType "team-tourn"]
[EventRounds "7"]
[EventCountry "GER"]
[SourceTitle "playchess.com"]
[Source "ChessBase"]
[SourceQuality "1"]
[WhiteTeam "Sges Bensheim"]
[BlackTeam "SG Trier"]
[TimeControl "40/5400+30:1800+30"]

1. e4 {[%emt 0:00:00]} c5 {[%emt 0:00:00]} 2. Nf3 {[%emt 0:00:00]} Nc6 {[%emt 0:00:00]} 3. d4 {[%emt 0:00:00]} cxd4 {[%emt 0:00:00]} 4. Nxd4 {[%emt 0:00:00]} e5 {[%emt 0:00:00]} 5. Nb5 {[%emt 0:00:00]} a6 {[%emt 0:00:00]} 6. Nd6+ {[%emt 0:00:02]} Bxd6 {[%emt 0:00:00]} 7. Qxd6 {[%emt 0:00:06]} Qe7 {[%emt 0:00:00]} 8. Qd2 {[%emt 0:02:43]} Nf6 {[%emt 0:00:19]} 9. Nc3 {[%emt 0:00:14]} Nd4 {[%emt 0:01:24]} 10. Bd3 {[%emt 0:05:10]} O-O {[%emt 0:01:45]} 11. O-O {[%emt 0:02:47]} b5 {[%emt 0:02:59]} 12. Nd5 {[%emt 0:03:20]} Nxd5 {[%emt 0:02:36]} 13. exd5 {[%emt 0:03:12]} d6 {[%emt 0:00:13]} 14. Re1 {[%emt 0:09:11]} Qf6 {[%emt 0:02:05]} 15. c3 {[%emt 0:09:52]} Nf5 {[%emt 0:00:40]} 16. b3 {[%emt 0:00:37]} Ne7 {[%emt 0:01:13]} 17. Bb2 {[%emt 0:09:47]} Bf5 {[%emt 0:02:23]} 18. Rac1 {[%emt 0:06:13]} Qg6 {[%emt 0:02:42]} 19. Re3 {[%emt 0:06:53]} Bxd3 {[%emt 0:00:19]} 20. Rxd3 {[%emt 0:03:02]} Rac8 {[%emt 0:00:41]} 21. Ba3 {[%emt 0:02:28]} Rfd8 {[%emt 0:01:42]} 22. Bb4 {[%emt 0:10:25]} Nf5 {[%emt 0:02:49]} 23. Ra1 {[%emt 0:02:27]} Re8 {[%emt 0:03:44]} 24. a4 {[%emt 0:02:05]} bxa4 {[%emt 0:01:32]} 25. Rxa4 {[%emt 0:01:26]} Nh4 {[%emt 0:00:31]} 26. f3 {[%emt 0:03:10]} Nxg2 {[%emt 0:00:32]} 27. Kh1 {[%emt 0:02:48]} Nf4 {[%emt 0:04:17]} 28. Re3 {[%emt 0:00:04]} Qb1+ {[%emt 0:00:22]} 29. Re1 {[%emt 0:00:27]} Qxb3 {[%emt 0:00:12]} 30. Rxa6 {[%emt 0:01:02]} Nxd5 {[%emt 0:02:13]} 31. Bxd6 {[%emt 0:02:52]} e4 {[%emt 0:03:40] normal} 32. fxe4 {[%emt 0:02:10]} Nxc3 {[%emt 0:00:13] normal} 33. Ra3 {[%emt 0:01:46] normal} Nxe4 {[%emt 0:01:50] normal} 34. Qd4 {[%emt 0:04:53] normal} Qb7 {[%emt 0:00:39] normal} 35. Kg1 {[%emt 0:00:32]} Nxd6 {[%emt 0:00:10] normal} 0-1

[Event "DVM U20 2019"]
[Site "Braunschweig"]
[Date "2019.12.28"]
[Round "3"]
[White "Lutz, Ruben"]
[Black "Melde, Benjamin"]
[Result "1/2-1/2"]
[ECO "A45"]
[WhiteElo "2132"]
[BlackElo "2120"]
[Annotator "NA"]
[PlyCount "88"]
[EventDate "2019.12.27"]
[EventType "team-tourn"]
[EventRounds "7"]
[EventCountry "GER"]
[SourceTitle "playchess.com"]
[Source "ChessBase"]
[SourceQuality "1"]
[WhiteTeam "USV TU Dresden"]
[BlackTeam "SK Turm Kleve"]
[TimeControl "40/5400+30:1800+30"]

1. d4 {[%emt 0:00:00]} Nf6 {[%emt 0:00:00]} 2. Bf4 {[%emt 0:00:00]} g6 {[%emt 0:00:00]} 3. e3 {[%emt 0:00:00]} Bg7 {[%emt 0:00:00]} 4. Nf3 {[%emt 0:00:22]} O-O {[%emt 0:00:00]} 5. Be2 {[%emt 0:00:38]} d6 {[%emt 0:00:01]} 6. h3 {[%emt 0:00:12]} c5 {[%emt 0:00:05]} 7. c3 {[%emt 0:00:16]} b6 {[%emt 0:00:05]} 8. Nbd2 {[%emt 0:00:31]} Bb7 {[%emt 0:00:06]} 9. O-O {[%emt 0:00:26]} Nbd7 {[%emt 0:00:05] unterminated} 10. a4 {[%emt 0:00:39]} a6 {[%emt 0:00:06] unterminated} 11. Bh2 {[%emt 0:02:16]} Ra7 {[%emt 0:00:06] unterminated} 12. b4 {[%emt 0:12:04] unterminated A48: 1 d4 Nf6 2 Nf3 g6: Torre, London and Colle Systems} (12. Qb1 Qa8 13. Bd3 cxd4 14. cxd4 Nd5 15. Rc1 Nb4 16. Bf1 Nf6 17. Ra3 Bd5 18. Bc4 Bc6 19. Bf1 Bd5 {1-0 (56) Ivanchuk,V (2713)-Wagner,D (2566) Batumi 2018}) 12... Qa8 {[%emt 0:22:59]} 13. Qb3 {[%emt 0:07:08]} Rc8 {[%emt 0:09:12]} 14. Rfc1 {[%emt 0:21:31]} cxb4 {[%emt 0:01:50]} 15. cxb4 {[%emt 0:00:22]} Bd5 {[%emt 0:00:05]} 16. Qb2 {[%emt 0:03:34] [#]} a5 $146 {[%emt 0:13:09]} ({Predecessor:} 16... Rac7 17. Rxc7 Rxc7 {½-½ (17) Deepan Chakkravarthy,J (2506)-David,A (2565) Paris 2009}) 17. b5 {[%emt 0:19:44]} Rac7 {[%emt 0:00:39]} 18. Rxc7 {[%emt 0:00:48]} Rxc7 {[%emt 0:00:02]} 19. Rc1 {[%emt 0:00:41]} Qc8 {[%emt 0:00:05]} 20. Rxc7 {[%emt 0:00:33]} Qxc7 {[%emt 0:00:02]} 21. Bd3 {[%emt 0:00:11]} Bb7 {[%emt 0:11:58]} 22. e4 {[%emt 0:03:28]} Ne8 {[%emt 0:08:53]} 23. Qc2 {[%emt 0:04:20]} Qxc2 {[%emt 0:21:59]} 24. Bxc2 {[%emt 0:00:05]} e6 {[%emt 0:00:04]} 25. Kf1 {[%emt 0:05:52]} Kf8 {[%emt 0:00:59]} 26. Ke2 {[%emt 0:00:32]} Bh6 {[%emt 0:00:47]} 27. Bg3 {[%emt 0:01:58] unterminated} Bg7 {[%emt 0:04:04]} 28. Bf4 {[%emt 0:01:02] unterminated} Ke7 {[%emt 0:00:06] unterminated} 29. Be3 {[%emt 0:01:42]} h6 {[%emt 0:00:17] unterminated} 30. Ne1 {[%emt 0:05:17] unterminated} f5 {[%emt 0:02:07]} 31. f3 {[%emt 0:01:14]} Nef6 {[%emt 0:00:08] unterminated} 32. g4 {[%emt 0:01:44] unterminated} fxe4 {[%emt 0:01:15]} 33. fxe4 {[%emt 0:00:07]} g5 {[%emt 0:01:08] unterminated} 34. Kf3 {[%emt 0:03:24] unterminated} Nf8 {[%emt 0:03:01] unterminated} 35. Nf1 {[%emt 0:01:19]} N6d7 {[%emt 0:01:07] unterminated} 36. Ng3 {[%emt 0:01:59]} Ng6 {[%emt 0:00:02] unterminated} 37. Nd3 {[%emt 0:01:50]} Nh4+ {[%emt 0:00:20] unterminated} 38. Kf2 {[%emt 0:00:30]} Nf6 {[%emt 0:00:33]} 39. Nb2 {[%emt 0:00:23] unterminated} d5 {[%emt 0:00:53]} 40. e5 {[%emt 0:00:37]} Nd7 {[%emt 0:00:55] unterminated} 41. Nd3 {[%emt 0:04:19] unterminated} Kf7 $14 {[%emt 0:03:00]} 42. Ne1 {[%emt 0:00:30]} Bf8 {[%emt 0:00:34]} 43. Nf3 {[%emt 0:01:06]} Nxf3 {[%emt 0:00:51]} 44. Kxf3 {[%emt 0:00:04]} Be7 {[%emt 0:07:23] normal} 1/2-1/2

[Event "DVM U20 2019"]
[Site "Braunschweig"]
[Date "2019.12.28"]
[Round "3"]
[White "Hoffmann, Jens"]
[Black "Roseneck, Jonas"]
[Result "0-1"]
[ECO "B90"]
[WhiteElo "2113"]
[BlackElo "2417"]
[Annotator "NA"]
[PlyCount "87"]
[EventDate "2019.12.27"]
[EventType "team-tourn"]
[EventRounds "7"]
[EventCountry "GER"]
[SourceTitle "playchess.com"]
[Source "ChessBase"]
[SourceQuality "1"]
[WhiteTeam "SF HN-Biberach"]
[BlackTeam "SG Aufbau Elbe Magdeburg"]
[TimeControl "40/5400+30:1800+30"]

{[%evp 19,87,22,3,6,7,32767,32767,32767,32767,32767,32767,32767,32767,32767,32767,-83,-62,-62,32767,-11,-5,-67,-61,-53,-52,-79,-52,-46,-51,32767,-47,-108,32767,32767,-120,-119,32767,32767,32767,32767,-114,-123,-100,-123,-99,-107,32767,32767,32767,32767,32767,32767,32767,32767,-118,-123,-114,-122,-123,-114,-123,-110,-128,-118,-133,32767,32767,32767,32767,-127]} 1. e4 {[%emt 0:00:00]} c5 {[%emt 0:00:00]} 2. Nf3 {[%emt 0:00:00]} d6 {[%emt 0:00:00]} 3. d4 {[%emt 0:00:00]} cxd4 {[%emt 0:00:00]} 4. Nxd4 {[%emt 0:00:00]} Nf6 {[%emt 0:00:00]} 5. Nc3 {[%emt 0:00:00]} a6 {[%emt 0:00:00]} 6. Be3 {[%emt 0:00:09]} e5 {[%emt 0:00:00]} 7. Nb3 {[%emt 0:00:05]} Be6 {[%emt 0:00:00]} 8. f3 {[%emt 0:00:06]} h5 {[%emt 0:00:01] unterminated} 9. Qd2 {[%emt 0:02:22]} Nbd7 {[%emt 0:00:12] unterminated} 10. a4 {[%emt 0:07:13] unterminated} Be7 {[%emt 0:05:39] unterminated B90: Sicilian Najdorf: Unusual White 6th moves, 6 Be3 Ng4 and 6 Be3 e5} 11. Be2 {[%emt 0:06:10] unterminated} O-O {[%emt 0:19:46]} (11... Nb6 12. O-O Rc8 13. Rfd1 O-O 14. a5 Nc4 15. Bxc4 Rxc4 16. Nc1 Qc8 17. N1e2 Rd8 18. Bg5 {½-½ (58) Salgado Lopez,I (2618)-Ponomariov,R (2715) Gjakova 2016}) 12. a5 {[%emt 0:01:27]} b5 {[%emt 0:15:38]} 13. axb6 $146 {[%emt 0:03:50]} ({Predecessor:} 13. O-O Rc8 14. Nd5 Nxd5 15. exd5 Bf5 16. Rac1 Rc4 17. Bxc4 bxc4 18. Na1 {0-1 (69) Perelshteyn,E (2544)-Khachiyan,M (2463) Los Angeles 2006}) 13... Nxb6 {[%emt 0:00:05] unterminated} 14. O-O {[%emt 0:18:57] unterminated} d5 {[%emt 0:06:56]} 15. exd5 {[%emt 0:00:18] unterminated} Nbxd5 {[%emt 0:01:11] unterminated} 16. Nxd5 {[%emt 0:06:37] unterminated} Nxd5 {[%emt 0:00:22] unterminated} 17. Rxa6 {[%emt 0:14:35] unterminated} Rxa6 {[%emt 0:10:19]} 18. Bxa6 {[%emt 0:00:07]} Nb4 {[%emt 0:00:16] unterminated} 19. Qe2 {[%emt 0:05:02] unterminated} Qc7 {[%emt 0:07:39] unterminated} 20. Bd3 {[%emt 0:05:46] unterminated} (20. Rc1 $1 $11) 20... Nxd3 {[%emt 0:08:23]} 21. Qxd3 {[%emt 0:00:31]} Rd8 {[%emt 0:00:04] unterminated} 22. Qc3 $1 {[%emt 0:05:54] unterminated} Qxc3 {[%emt 0:01:59]} 23. bxc3 {[%emt 0:00:06] unterminated} Rc8 {[%emt 0:08:15] unterminated} 24. Bd2 {[%emt 0:02:32] unterminated} Bf5 {[%emt 0:00:52] unterminated} 25. Kf2 {[%emt 0:18:23]} Bxc2 {[%emt 0:00:37]} 26. Nc1 {[%emt 0:00:14] unterminated} Bc5+ {[%emt 0:02:31] unterminated} 27. Be3 {[%emt 0:02:09]} Bxe3+ {[%emt 0:02:30]} 28. Kxe3 {[%emt 0:00:01]} Rxc3+ {[%emt 0:00:06]} 29. Kd2 {[%emt 0:00:07] unterminated} Rc6 {[%emt 0:07:01]} 30. Nd3 {[%emt 0:00:11]} Bb3 {[%emt 0:00:29] unterminated} 31. Ke3 {[%emt 0:01:47]} Rc2 {[%emt 0:00:34]} 32. Rf2 {[%emt 0:00:44]} Rxf2 {[%emt 0:00:05]} 33. Kxf2 {[%emt 0:00:31]} f6 {[%emt 0:00:07]} 34. h4 {[%emt 0:00:10]} Kf7 {[%emt 0:00:34]} 35. Ke3 {[%emt 0:00:38]} Bc2 {[%emt 0:00:20]} 36. Nb4 {[%emt 0:00:38] unterminated} Bf5 {[%emt 0:01:15]} 37. Na2 {[%emt 0:00:29]} Bd7 {[%emt 0:00:40] unterminated} 38. Nb4 {[%emt 0:00:27]} Bb5 {[%emt 0:00:51]} 39. Nd5 {[%emt 0:00:26] unterminated} Bc4 {[%emt 0:00:40] unterminated} 40. Nb4 {[%emt 0:00:37]} Ke6 {[%emt 0:00:32] unterminated} 41. Nc2 {[%emt 0:03:46] unterminated} Bb3 {[%emt 0:05:01]} 42. Nb4 {[%emt 0:01:04] unterminated} Kd6 {[%emt 0:01:12] unterminated} 43. Ke4 {[%emt 0:01:30]} Be6 {[%emt 0:00:58] unterminated} 44. g3 $17 {[%emt 0:11:14] normal} 0-1

[Event "DVM U20 2019"]
[Site "Braunschweig"]
[Date "2019.12.28"]
[Round "3"]
[White "Koll, Lukas"]
[Black "Waffenschmidt, Lars"]
[Result "0-1"]
[ECO "D78"]
[WhiteElo "2093"]
[BlackElo "1885"]
[Annotator "NA RC"]
[PlyCount "55"]
[EventDate "2019.12.27"]
[EventType "team-tourn"]
[EventRounds "7"]
[EventCountry "GER"]
[SourceTitle "playchess.com"]
[Source "ChessBase"]
[SourceQuality "1"]
[WhiteTeam "Karlsruher SF"]
[BlackTeam "SK Bebenhausen"]
[TimeControl "40/5400+30:1800+30"]

1. Nf3 {[%emt 0:00:00]} d5 {[%emt 0:00:26]} 2. g3 {[%emt 0:00:00]} Nf6 {[%emt 0:00:20]} 3. Bg2 {[%emt 0:00:00]} g6 {[%emt 0:00:15] unterminated} 4. d4 {[%emt 0:01:19]} Bg7 {[%emt 0:00:22]} 5. c4 {[%emt 0:01:09] unterminated} c6 {[%emt 0:09:40] unterminated} 6. O-O {[%emt 0:01:42]} ({Predecessor:} 6. Nbd2 O-O 7. O-O Ne4 8. b3 Bf5 9. Bb2 Nd7 10. Rc1 {½-½ (13) Kustar,S (2370)-Groszpeter,A (2483) Zalakaros 2001}) 6... O-O {[%emt 0:00:24] unterminated} 7. b3 {[%emt 0:01:11] unterminated} Bf5 {[%emt 0:03:05]} 8. Bb2 {[%emt 0:01:06] unterminated} Nbd7 {[%emt 0:04:48] unterminated} 9. Nbd2 $146 {[%emt 0:02:42] unterminated unterminated. D78: Fianchetto Grünfeld: 6 0-0 c6} (9. e3 Ne4 10. Nfd2 Ndf6 11. Nxe4 Bxe4 12. Bh3 Qb6 13. f3 Bxb1 14. Rxb1 e6 15. Qd3 Rfe8 16. c5 Qc7 {0-1 (35) Ding,L (2774)-Carlsen,M (2837) Saint Louis 2017}) 9... Rc8 {[%emt 0:03:10] unterminated} 10. Rc1 {[%emt 0:02:35] unterminated} Ne4 {[%emt 0:30:50] unterminated} 11. Nh4 {[%emt 0:02:56]} Nxd2 {[%emt 0:01:09]} 12. Qxd2 {[%emt 0:00:49] unterminated} Be6 {[%emt 0:00:44] unterminated} 13. cxd5 {[%emt 0:10:25] unterminated} cxd5 {[%emt 0:02:27] unterminated} 14. Qb4 {[%emt 0:00:24] unterminated} Qb6 {[%emt 0:08:09]} 15. Qxb6 {[%emt 0:00:08]} Nxb6 {[%emt 0:00:17] unterminated} 16. Nf3 {[%emt 0:00:53] unterminated} Bf6 {[%emt 0:03:20] unterminated} 17. Ne5 {[%emt 0:01:04] unterminated} Bxe5 {[%emt 0:12:44]} 18. dxe5 {[%emt 0:00:17] unterminated} Rfd8 {[%emt 0:00:37] unterminated} 19. Bd4 $14 {[%emt 0:00:40]} Kf8 {[%emt 0:01:28]} 20. Rfd1 {[%emt 0:00:39]} Rxc1 {[%emt 0:10:43]} 21. Rxc1 {[%emt 0:00:36]} Rc8 {[%emt 0:00:35]} 22. Rxc8+ {[%emt 0:00:48]} Nxc8 {[%emt 0:00:09]} 23. Kf1 {[%emt 0:00:13]} Ke8 {[%emt 0:00:47]} 24. Ke1 {[%emt 0:00:12]} Kd7 {[%emt 0:00:30]} 25. Kd2 {[%emt 0:00:15]} Kc6 {[%emt 0:01:08]} 26. b4 {[%emt 0:01:50]} Nb6 {[%emt 0:01:58]} 27. Bxb6 {[%emt 0:03:21]} Kxb6 {[%emt 0:00:26]} 28. a3 {[%emt 0:00:13] normal} 0-1

[Event "DVM U20 2019"]
[Site "Braunschweig"]
[Date "2019.12.28"]
[Round "3"]
[White "Kartsev, Nikolay"]
[Black "Engel, Robert"]
[Result "1/2-1/2"]
[ECO "B50"]
[WhiteElo "2092"]
[BlackElo "2075"]
[Annotator "NA"]
[PlyCount "90"]
[EventDate "2019.12.27"]
[EventType "team-tourn"]
[EventRounds "7"]
[EventCountry "GER"]
[SourceTitle "playchess.com"]
[Source "ChessBase"]
[SourceQuality "1"]
[WhiteTeam "SF Brackel"]
[BlackTeam "Hamburger SK"]
[TimeControl "40/5400+30:1800+30"]

1. e4 {[%emt 0:00:18]} c5 {[%emt 0:00:00]} 2. Nf3 {[%emt 0:00:05]} d6 {[%emt 0:00:00]} 3. c3 {[%emt 0:00:08]} Nf6 {[%emt 0:00:12]} 4. h3 {[%emt 0:00:06] unterminated} e6 {[%emt 0:05:21] unterminated} 5. Bd3 {[%emt 0:02:40] unterminated} Nbd7 6. Bc2 {unterminated unterminated. B50: Sicilian: 2...d6, Miscellaneous} b6 {[%emt 0:05:08] unterminated} 7. O-O {[%emt 0:01:54] unterminated} Bb7 {[%emt 0:00:20]} 8. Re1 {[%emt 0:00:18] unterminated} Rc8 {[%emt 0:07:23]} (8... Qc7 9. d4 Be7 10. Na3 a6 11. e5 dxe5 12. dxe5 Nd5 13. Bg5 Bxg5 14. Nxg5 Nxe5 15. Qh5 Nf4 {½-½ (15) Sosa,T (2524)-Henriquez Villagra,C (2587) Vallfogona de Balague 2019}) 9. d3 {[%emt 0:01:37] unterminated} Be7 {[%emt 0:02:04]} 10. Nbd2 $146 {[%emt 0:00:09] unterminated} ({Predecessor:} 10. Bf4 Qc7 11. Nbd2 O-O 12. Nf1 Rfd8 13. Qe2 Nf8 {½-½ (46) Liberman,E (2165)-Kazantzev,V Togliatti 2014}) 10... O-O {[%emt 0:03:26]} 11. Nf1 {[%emt 0:00:04] unterminated} b5 {unterminated} 12. Bd2 {[%emt 0:11:36] unterminated} Ne5 {[%emt 0:31:04] unterminated} 13. a4 {[%emt 0:07:43] unterminated} a6 {[%emt 0:04:08] unterminated} 14. axb5 {[%emt 0:02:21]} axb5 {[%emt 0:00:33] unterminated} 15. N1h2 {[%emt 0:07:11] unterminated} Qc7 {[%emt 0:07:42] unterminated} 16. Nxe5 {[%emt 0:12:43]} dxe5 {[%emt 0:00:07]} 17. g4 {[%emt 0:00:04] unterminated} Nd7 {[%emt 0:08:43] unterminated} 18. c4 {[%emt 0:04:44] unterminated} b4 {[%emt 0:04:47] unterminated} 19. g5 {[%emt 0:05:07] unterminated} Nb8 {[%emt 0:00:43] unterminated} 20. Qh5 {[%emt 0:07:57] unterminated} Nc6 {[%emt 0:00:32] unterminated} 21. Be3 {[%emt 0:06:38] unterminated} Nd4 {[%emt 0:02:16]} 22. Bxd4 {[%emt 0:00:15]} exd4 {[%emt 0:00:28] unterminated} 23. e5 {[%emt 0:01:31] unterminated} Ra8 {[%emt 0:09:51]} 24. Rab1 {[%emt 0:00:26] unterminated} Qd8 {[%emt 0:02:12] unterminated} 25. h4 {[%emt 0:02:27]} g6 {[%emt 0:00:12] unterminated} 26. Qg4 {[%emt 0:10:07]} h5 {[%emt 0:00:16] unterminated} 27. Qf4 {[%emt 0:01:49] unterminated} Qb6 {[%emt 0:01:09] unterminated} (27... Qc7 $5 {[%cal Rf7f6]} 28. Qg3 Rfc8 $15) 28. Bd1 {[%emt 0:00:38] unterminated} Ra2 {[%emt 0:01:12]} 29. Bf3 {[%emt 0:01:40] unterminated} Bxf3 {[%emt 0:00:21]} 30. Nxf3 {[%emt 0:00:28]} b3 {[%emt 0:00:29] unterminated} 31. Nd2 {[%emt 0:01:08]} Qb4 {[%emt 0:00:25]} 32. Red1 {[%emt 0:00:52] unterminated} Rfa8 {[%emt 0:01:33] unterminated} 33. Ne4 {[%emt 0:00:54]} Qb7 {[%emt 0:01:05] unterminated} 34. Kh2 {[%emt 0:01:47] unterminated} Kg7 {[%emt 0:00:13]} 35. Rg1 {[%emt 0:00:13]} ({Much weaker is} 35. Nd6 Bxd6 36. exd6 Kg8 $17) 35... R8a7 {[%emt 0:01:11] unterminated} 36. Nf6 {[%emt 0:06:19]} ({Much worse is} 36. Nd6 Bxd6 37. exd6 Kg8 $17) 36... Qa8 {[%emt 0:01:45] unterminated} 37. Qe4 {[%emt 0:03:05] unterminated} Bxf6 {[%emt 0:00:32]} 38. gxf6+ {[%emt 0:00:08] unterminated} (38. exf6+ $11 Kf8 39. Qxa8+ Rxa8 40. Kg3) 38... Kh7 {[%emt 0:00:30]} 39. Qxa8 {[%emt 0:01:06]} Rxa8 {[%emt 0:00:01] unterminated} 40. Kg3 {[%emt 0:00:59]} Kh6 {[%emt 0:00:54]} 41. f4 {[%emt 0:30:35] unterminated} R8a6 {[%emt 0:31:11] unterminated} 42. Kf3 {[%emt 0:00:00] unterminated} Ra7 $11 {[%emt 0:00:00]} 43. Ke4 {[%emt 0:00:00]} R7a6 {[%emt 0:00:00]} 44. Rge1 {[%emt 0:00:00]} Ra8 {[%emt 0:00:00]} 45. Rg1 {[%emt 0:00:00]} R8a6 {[%emt 0:00:00] normal} 1/2-1/2

[Event "DVM U20 2019"]
[Site "Braunschweig"]
[Date "2019.12.28"]
[Round "3"]
[White "Wu, Luka"]
[Black "Schimnatkowski, Lukas"]
[Result "1-0"]
[ECO "B28"]
[WhiteElo "2073"]
[BlackElo "2157"]
[Annotator "ChessBase"]
[PlyCount "98"]
[EventDate "2019.12.27"]
[EventType "team-tourn"]
[EventRounds "7"]
[EventCountry "GER"]
[SourceTitle "playchess.com"]
[Source "ChessBase"]
[SourceQuality "1"]
[WhiteTeam "OSG Baden-Baden"]
[BlackTeam "SF Essen-Katernberg"]
[TimeControl "40/5400+30:1800+30"]

1. e4 {[%emt 0:00:00]} c5 {[%emt 0:00:00]} 2. Nf3 a6 3. Be2 {[%emt 0:15:49]} e6 {[%emt 0:06:39]} 4. d4 {[%emt 0:00:48]} cxd4 {[%emt 0:01:16]} 5. Nxd4 {[%emt 0:00:14]} Nf6 {[%emt 0:01:42]} 6. Bf3 {[%emt 0:07:44]} Nc6 {[%emt 0:09:24]} 7. O-O {[%emt 0:02:12]} Qc7 {[%emt 0:05:09]} 8. Nc3 {[%emt 0:00:56]} Bb4 {[%emt 0:05:03]} 9. Nxc6 {[%emt 0:06:24]} bxc6 {[%emt 0:06:12]} 10. Qd4 {[%emt 0:02:43]} Rb8 11. e5 {[%emt 0:20:25]} Nd5 {[%emt 0:07:06]} 12. Qg4 {[%emt 0:02:05]} g6 {[%emt 0:13:28]} 13. Nxd5 {[%emt 0:21:54]} cxd5 {[%emt 0:01:29]} 14. c3 {[%emt 0:01:58]} Be7 {[%emt 0:02:18]} 15. Re1 {[%emt 0:00:35]} a5 {[%emt 0:07:35]} 16. Rb1 {[%emt 0:01:36]} Ba6 {[%emt 0:02:52]} 17. Be2 {[%emt 0:02:16]} Bxe2 {[%emt 0:01:02]} 18. Qxe2 {[%emt 0:00:23]} O-O {[%emt 0:03:19]} 19. Bf4 {[%emt 0:00:50]} Rfc8 {[%emt 0:01:08]} 20. Qd2 {[%emt 0:01:30]} Qc4 {[%emt 0:01:31]} 21. a3 {[%emt 0:00:47]} a4 {[%emt 0:00:47]} 22. g3 {[%emt 0:00:51]} Rb3 {[%emt 0:04:40]} 23. Bg5 {[%emt 0:00:53]} Bxg5 {[%emt 0:05:41]} 24. Qxg5 {[%emt 0:00:08]} Qc5 {[%emt 0:00:10]} 25. Kg2 {[%emt 0:00:45]} Rcb8 {[%emt 0:00:15]} 26. Qh4 {[%emt 0:01:04]} d6 {[%emt 0:09:27]} 27. Qe7 {[%emt 0:02:51]} R3b7 {[%emt 0:03:44]} 28. Qxd6 {[%emt 0:00:10]} Qxd6 {[%emt 0:00:08]} 29. exd6 {[%emt 0:00:03]} Kf8 {[%emt 0:01:19]} 30. Red1 {[%emt 0:00:50]} Rb6 {[%emt 0:00:56]} 31. Rd4 {[%emt 0:00:07]} Ra8 {[%emt 0:00:25]} 32. c4 {[%emt 0:00:32]} Rxd6 {[%emt 0:00:32]} 33. cxd5 {[%emt 0:00:04]} exd5 {[%emt 0:00:23]} 34. Rbd1 {[%emt 0:01:05]} Ra5 {[%emt 0:00:17]} 35. Rb4 {[%emt 0:00:31]} Ke7 {[%emt 0:00:51]} 36. Rdd4 {[%emt 0:00:11]} Ke6 {[%emt 0:00:26]} 37. Rxa4 {[%emt 0:00:05]} Rc5 {[%emt 0:00:16]} 38. Rd2 {[%emt 0:00:13]} Rb6 {[%emt 0:00:39]} 39. Re2+ {[%emt 0:00:20]} Kf6 {[%emt 0:00:30]} 40. Ra7 {[%emt 0:00:15]} Rb3 {[%emt 0:00:48]} 41. Ree7 {[%emt 0:30:36]} Rxb2 {[%emt 0:08:41]} 42. Rxf7+ {[%emt 0:00:00]} Ke5 {[%emt 0:00:07]} 43. Rxh7 {[%emt 0:00:00]} Ke4 {[%emt 0:07:53]} 44. Rhe7+ {[%emt 0:00:00]} Kd3 {[%emt 0:03:18]} 45. Re3+ {[%emt 0:00:00]} Kd4 {[%emt 0:00:23]} 46. h4 {[%emt 0:00:00]} Rcc2 {[%emt 0:01:59]} 47. Rf3 {[%emt 0:00:00]} Rb1 {[%emt 0:01:09]} 48. Ra6 {[%emt 0:00:00]} Rcc1 {[%emt 0:00:50]} 49. Ra4+ {[%emt 0:00:00]} Ke5 {[%emt 0:01:24] normal} 1-0